bitfinex-derivatives/quotes_SOLF0:USTF0_20250528
["timestamp","ask_amount","ask_price","bid_price","bid_amount"]
[1748417251385,0.04415275,174.1,174.07,28.32382192]
[1748417251582,184.0708,174.2,174.11,5.7406]
[1748417251790,4.27309938,174.17,174.11,5.7406]
[1748417251986,4.27309938,174.17,174.09,4.27309938]
[1748417252187,5.7398,174.14,174.11,5.7406]
[1748417252687,5.78108372,174.14,174.11,0.04167461]
[1748417253983,5.78108372,174.14,174.12,5.7403]
[1748417257191,0.04128372,174.14,174.12,5.7403]
[1748417258191,5.78118372,174.14,174.11,5.78227461]
[1748417259585,5.78118372,174.14,174.12,5.7403]
[1748417259887,5.78118372,174.14,174.11,0.04167461]
[1748417260286,5.78118372,174.14,174.11,5.78217461]
[1748417263691,5.7401,174.13,174.11,5.78217461]
[1748417265792,5.7401,174.13,174.11,0.04167461]
[1748417267391,5.7404,174.12,174.11,0.04167461]
[1748417285715,5.7404,174.12,174.11,7.461e-05]
[1748417286115,5.7425,174.06,174.04,138.46]
[1748417286319,5.7425,174.06,174.04,28.24]
[1748417287025,5.7425,174.06,174.04,33.9829]
[1748417287219,5.78354286,174.07,174.04,33.9829]
[1748417287821,0.04134286,174.07,174.04,28.24]
[1748417289117,0.04134286,174.07,174.05,5.7427]
[1748417289722,0.04134286,174.07,174.06,5.7424]
[1748417309233,0.04134286,174.07,174.03,110.26129648]
[1748417309933,5.78354286,174.07,174.03,110.26129648]
[1748417310330,5.78354286,174.07,174.04,5.7428]
[1748417312923,5.78354286,174.07,174.05,5.7426]
[1748417313123,0.04134286,174.07,174.05,5.7426]
[1748417314032,5.78344286,174.07,174.05,5.7426]
[1748417314836,0.04134286,174.07,174.06,5.7424]
[1748417316225,5.7419,174.08,174.06,5.7424]
[1748417316436,4.27309938,174.1,174.05,5.7426]
[1748417317336,5.7417,174.08,174.06,0.04396371]
[1748417317729,0.04286249,174.09,174.06,0.04396371]
[1748417317933,5.7417,174.08,174.06,0.04396371]
[1748417319542,5.7417,174.08,174.06,5.78636371]
[1748417320133,5.7417,174.08,174.06,0.04396371]
[1748417323242,5.742,174.07,174.06,0.04396371]
[1748417326546,5.7419,174.08,174.06,5.78626371]
[1748417329553,5.742,174.07,174.06,0.04396371]
[1748417339658,5.7419,174.08,174.06,5.78636371]
[1748417339855,0.04286249,174.09,174.06,0.04396371]
[1748417340251,5.78436249,174.09,174.07,5.7419]
[1748417340663,5.78436249,174.09,174.06,0.04396371]
[1748417340867,5.78436249,174.09,174.06,5.78616371]
[1748417341352,5.7418,174.08,174.06,5.78616371]
[1748417347069,5.78436249,174.09,174.06,5.78616371]
[1748417347364,0.04286249,174.09,174.06,0.04396371]
[1748417347861,0.04286249,174.09,174.08,5.7417]
[1748417348458,0.04286249,174.09,174.07,5.7419]
[1748417349266,5.78426249,174.09,174.07,5.7419]
[1748417352868,0.04286249,174.09,174.08,5.7417]
[1748417353968,4.31596187,174.09,174.06,0.04396371]
[1748417354470,5.742,174.07,174.06,0.04396371]
[1748417359176,5.7418,174.08,174.06,0.04396371]
[1748417360977,5.742,174.07,174.06,0.04396371]
[1748417361178,4.27309938,174.07,174.02,138.38]
[1748417361676,5.7424,174.06,174.03,5.7431]
[1748417362277,5.7427,174.05,174.03,5.7838819]
[1748417365581,5.743,174.04,174.03,0.0407819]
[1748417374088,5.78654912,174.05,174.03,5.7841819]
[1748417375288,5.78654912,174.05,174.03,0.0407819]
[1748417376988,5.743,174.04,174.03,0.0407819]
[1748417379091,10.01609938,174.04,174.03,0.0407819]
[1748417380890,4.27309938,174.04,174.03,0.0407819]
[1748417383293,5.743,174.04,174.03,0.0407819]
[1748417386093,4.3168485,174.05,174.03,0.0407819]
[1748417386394,10.0597485,174.05,174.03,0.0407819]
[1748417386897,5.743,174.04,174.03,0.0407819]
[1748417402997,4.3168485,174.05,174.03,0.0407819]
[1748417402998,0.04374912,174.05,174.03,0.0407819]
[1748417403205,0.04374912,174.05,174.03,28.2207819]
[1748417403801,0.04374912,174.05,174.04,5.743]
[1748417405001,5.743,174.04,174.03,0.0407819]
[1748417406194,0.04374912,174.05,174.03,0.0407819]
[1748417406506,0.04374912,174.05,174.04,5.743]
[1748417411306,0.04374912,174.05,174.03,0.0407819]
[1748417411905,5.743,174.04,174.03,0.0407819]
[1748417416407,182.0,174.03,173.96,28.18]
[1748417416611,4.27800685,174.01,173.95,138.3]
[1748417416807,4.27800685,174.01,173.96,5.7455]
[1748417417111,5.7448,173.99,173.96,5.7455]
[1748417417304,5.78434968,173.99,173.96,5.78675719]
[1748417417501,0.03954968,173.99,173.97,5.7453]
[1748417418313,0.03954968,173.99,173.98,5.745]
[1748417419909,5.7431,174.04,174.01,5.7437]
[1748417420713,5.7434,174.03,174.01,5.7437]
[1748417423412,5.7434,174.03,174.0,5.78316659]
[1748417428019,5.7437,174.02,174.0,5.78316659]
[1748417430812,5.7437,174.02,174.0,0.03896659]
[1748417432824,5.7437,174.02,174.0,5.78326659]
[1748417439325,5.744,174.01,174.0,0.03896659]
[1748417439928,10.02286625,174.01,174.0,0.03896659]
[1748417448637,0.04033985,174.04,174.0,5.78326659]
[1748417448842,4.27886625,174.03,174.0,0.03896659]
[1748417449145,0.04033985,174.04,174.0,0.03896659]
[1748417449337,5.78353985,174.04,174.0,0.03896659]
[1748417450545,5.78353985,174.04,174.02,5.7435]
[1748417454348,0.04033985,174.04,174.03,5.7434]
[1748417455049,182.0,174.16,174.03,32.43886625]
[1748417455253,4.27886625,174.13,174.05,4.27886625]
[1748417455455,182.0,174.15,174.05,4.27886625]
[1748417455654,5.7406,174.12,174.05,4.27886625]
[1748417456153,0.0385678,174.1,174.07,0.03951073]
[1748417456354,0.0385678,174.1,174.09,5.7413]
[1748417463158,5.7393,174.16,174.08,2.0622]
[1748417463348,28.16,174.19,174.09,4.078]
[1748417463549,6.67605821,174.17,174.03,496.1]
[1748417463756,182.0,174.16,174.04,138.26]
[1748417464259,5.7413,174.1,174.08,0.0431065]
[1748417466959,5.7413,174.1,174.08,5.7848065]
[1748417467156,5.7408,174.11,174.08,5.7848065]
[1748417468254,5.7411,174.1,174.08,5.7848065]
[1748417468855,0.0365446,174.12,174.08,5.7848065]
[1748417468856,5.7409,174.11,174.08,5.7848065]
[1748417469254,0.0365446,174.12,174.08,5.7848065]
[1748417469663,0.0365446,174.12,174.08,0.0431065]
[1748417470262,5.7414,174.09,174.08,0.0431065]
[1748417472156,5.7427,174.05,174.04,28.16]
[1748417472458,5.7427,174.05,173.97,2.0163]
[1748417472459,6.67605821,174.08,174.01,28.16]
[1748417472659,6.67605821,174.08,173.99,28.16]
[1748417472864,6.67605821,174.08,174.01,5.744]
[1748417473264,0.04399498,174.06,174.03,0.04114075]
[1748417473662,5.7432,174.04,174.03,0.04114075]
[1748417486869,0.04399498,174.06,174.03,0.04114075]
[1748417487576,0.04399498,174.06,174.04,5.7428]
[1748417488569,0.04399498,174.06,174.03,0.04114075]
[1748417489172,0.04399498,174.06,174.04,5.7428]
[1748417489980,5.78639498,174.06,174.04,5.7428]
[1748417490581,5.78639498,174.06,174.03,5.78444075]
[1748417490979,5.7428,174.05,174.03,5.78444075]
[1748417494283,5.78639498,174.06,174.03,5.78444075]
[1748417495082,5.78639498,174.06,174.04,5.743]
[1748417499589,0.04399498,174.06,174.04,5.743]
[1748417502187,0.04399498,174.06,174.05,5.7427]
[1748417502583,182.0,174.12,174.03,28.20114075]
[1748417502791,5.7412,174.1,174.08,5.7415]
[1748417503693,5.78104968,174.11,174.09,5.7414]
[1748417504092,0.04024968,174.11,174.07,0.04006536]
[1748417504392,5.7413,174.1,174.07,0.04006536]
[1748417504590,0.04024968,174.11,174.07,0.04006536]
[1748417505994,5.7416,174.09,174.07,5.78196536]
[1748417506596,5.7416,174.09,174.07,0.04006536]
[1748417507187,5.7416,174.09,174.07,5.78206536]
[1748417507391,5.7416,174.09,174.07,0.04006536]
[1748417507689,5.7417,174.08,174.07,0.04006536]
[1748417521310,0.04024968,174.11,174.07,0.04006536]
[1748417521909,5.7412,174.1,174.07,5.78196536]
[1748417524009,0.04024968,174.11,174.07,0.04006536]
[1748417524603,5.7417,174.08,174.07,0.04006536]
[1748417525210,5.7414,174.09,174.07,0.04006536]
[1748417525410,0.04024968,174.11,174.07,0.04006536]
[1748417525810,5.7413,174.1,174.07,5.78196536]
[1748417526508,0.04024968,174.11,174.07,0.04006536]
[1748417526711,0.04024968,174.11,174.07,110.12006536]
[1748417526919,0.04024968,174.11,174.09,5.7412]
[1748417529614,5.78094968,174.11,174.09,5.7412]
[1748417531312,5.7412,174.1,174.08,33.9016]
[1748417533417,5.78104968,174.11,174.08,33.9016]
[1748417533814,5.78104968,174.11,174.09,5.7413]
[1748417534216,5.78104968,174.11,174.08,28.16]
[1748417534518,5.78104968,174.11,174.08,33.9016]
[1748417535919,5.7414,174.09,174.08,28.16]
[1748417536121,5.7414,174.09,174.07,0.04006536]
[1748417536324,0.04024968,174.11,174.07,0.04006536]
[1748417536916,5.7417,174.08,174.07,0.04006536]
[1748417537321,0.04024968,174.11,174.07,0.04006536]
[1748417537622,5.7416,174.09,174.07,0.04006536]
[1748417539425,5.7417,174.08,174.07,0.04006536]
[1748417540218,5.7415,174.09,174.07,0.04006536]
[1748417541520,5.7415,174.09,174.07,5.78206536]
[1748417546828,5.7415,174.09,174.07,0.04006536]
[1748417549829,5.7417,174.08,174.07,0.04006536]
[1748417554039,0.04024968,174.11,174.07,0.04006536]
[1748417555133,0.04024968,174.11,174.07,1.92606536]
[1748417556641,0.04024968,174.11,174.1,5.741]
[1748417557041,0.04024968,174.11,174.07,1.92606536]
[1748417557740,0.04024968,174.11,174.09,5.7412]
[1748417558641,0.04024968,174.11,174.1,5.741]
[1748417559544,28.14,174.17,174.09,28.14]
[1748417559747,5.7392,174.16,174.09,28.14]
[1748417559934,5.7392,174.16,174.13,5.7398]
[1748417560337,182.0,174.18,174.13,5.7398]
[1748417560541,0.03835211,174.17,174.14,0.04015234]
[1748417561947,5.7395,174.15,174.14,0.04015234]
[1748417565037,5.741,174.1,174.09,28.14]
[1748417565244,182.0,174.15,174.07,1.886]
[1748417565444,6.67605821,174.14,174.06,28.14]
[1748417565947,0.03720813,174.12,174.08,0.04413018]
[1748417566141,5.7408,174.11,174.08,0.04413018]
[1748417566446,0.03720813,174.12,174.08,0.04413018]
[1748417567546,0.03720813,174.12,174.09,5.7412]
[1748417568138,5.77780813,174.12,174.09,5.7412]
[1748417569949,0.03720813,174.12,174.1,5.7409]
[1748417570151,0.03720813,174.12,174.08,0.04413018]
[1748417570543,0.03720813,174.12,174.11,5.7407]
[1748417570745,0.03720813,174.12,174.08,0.04413018]
[1748417571652,0.03720813,174.12,174.11,5.7407]
[1748417574948,0.03720813,174.12,174.1,5.7409]
[1748417575851,0.03720813,174.12,174.11,5.7407]
[1748417583557,5.9222,174.22,174.11,110.04]
[1748417583759,210.14,174.23,174.11,116.71605821]
[1748417584060,5.738,174.2,174.11,116.71605821]
[1748417584260,5.738,174.2,174.17,5.7387]
[1748417584660,5.7382,174.19,174.17,0.0440085]
[1748417585962,5.7384,174.18,174.17,0.0440085]
[1748417597481,5.7381,174.19,174.17,0.0440085]
[1748417598078,5.7381,174.19,174.17,5.7827085]
[1748417598281,5.7381,174.19,174.17,0.0440085]
[1748417600376,5.7381,174.19,174.17,5.7827085]
[1748417600585,5.78157735,174.2,174.17,0.0440085]
[1748417600982,5.78157735,174.2,174.18,5.7384]
[1748417601485,5.78157735,174.2,174.17,5.7826085]
[1748417603585,5.7381,174.19,174.17,5.7826085]
[1748417607092,0.04367735,174.2,174.17,0.0440085]
[1748417607483,0.04367735,174.2,174.19,5.7381]
[1748417607688,0.04367735,174.2,174.17,0.0440085]
[1748417608091,5.7382,174.19,174.17,0.0440085]
[1748417608290,0.04367735,174.2,174.17,0.0440085]
[1748417608687,5.7381,174.19,174.17,0.0440085]
[1748417609088,0.04367735,174.2,174.17,0.0440085]
[1748417610985,5.7384,174.18,174.17,0.0440085]
[1748417630604,10.00793939,174.18,174.17,0.0440085]
[1748417630808,5.7399,174.14,174.12,28.12]
[1748417631211,5.7393,174.16,174.12,28.12]
[1748417631806,5.78317274,174.16,174.12,28.15729973]
[1748417632909,5.78317274,174.16,174.13,5.7399]
[1748417633810,5.7394,174.15,174.13,5.7399]
[1748417634104,5.7394,174.15,174.12,28.15729973]
[1748417634105,0.04387274,174.16,174.12,33.89759973]
[1748417634309,4.31341213,174.16,174.12,0.03729973]
[1748417634509,0.04387274,174.16,174.12,0.03729973]
[1748417634710,4.26953939,174.15,174.12,0.03729973]
[1748417635007,5.74,174.14,174.12,0.03729973]
[1748417639912,5.7396,174.15,174.12,0.03729973]
[1748417640113,0.04387274,174.16,174.12,0.03729973]
[1748417640614,5.7398,174.14,174.12,0.03729973]
[1748417642315,5.7401,174.13,174.12,0.03729973]
[1748417642816,0.04387274,174.16,174.12,0.03729973]
[1748417643415,5.7399,174.14,174.12,0.03729973]
[1748417643614,5.7399,174.14,174.12,5.77769973]
[1748417644720,5.7399,174.14,174.12,0.03729973]
[1748417647013,5.7399,174.14,174.12,5.77769973]
[1748417647312,5.7395,174.15,174.12,5.77769973]
[1748417647817,0.04387274,174.16,174.12,0.03729973]
[1748417648017,0.04387274,174.16,174.13,4.26953939]
[1748417648912,0.04387274,174.16,174.14,5.7397]
[1748417649614,0.04387274,174.16,174.15,5.7394]
[1748417651917,0.04387274,174.16,174.14,5.7396]
[1748417655714,0.04387274,174.16,174.15,5.7394]
[1748417662624,0.04387274,174.16,174.14,28.12]
[1748417663013,5.7394,174.15,174.14,28.12]
[1748417663318,5.7394,174.15,174.12,5.77749973]
[1748417663918,5.78307274,174.16,174.13,5.74]
[1748417664120,0.04387274,174.16,174.12,0.03729973]
[1748417664613,0.04387274,174.16,174.14,5.7395]
[1748417665022,5.78307274,174.16,174.14,5.7395]
[1748417666122,0.04387274,174.16,174.14,5.7395]
[1748417667427,0.04387274,174.16,174.15,5.7394]
[1748417669824,0.04387274,174.16,174.15,10.00893939]
[1748417670128,4.26953939,174.24,174.15,4.26953939]
[1748417670323,4.26953939,174.24,174.17,4.26953939]
[1748417670532,5.7373,174.22,174.19,5.738]
[1748417671030,5.77489238,174.22,174.19,5.77991641]
[1748417672321,0.03759238,174.22,174.19,4.3114558]
[1748417673127,0.03759238,174.22,174.21,5.7374]
[1748417674932,0.03759238,174.22,174.2,5.7376]
[1748417677433,0.03759238,174.22,174.21,5.7374]
[1748417680031,0.03759238,174.22,174.2,5.7376]
[1748417681326,0.03759238,174.22,174.19,4.3114558]
[1748417682527,0.03759238,174.22,174.21,10.00693939]
[1748417687439,0.03759238,174.22,174.21,38.16693939]
[1748417687648,32.44953939,174.28,174.23,5.7366]
[1748417687845,5.736,174.26,174.23,5.7366]
[1748417688551,5.736,174.26,174.23,5.78063013]
[1748417689048,5.736,174.26,174.24,5.7364]
[1748417691250,5.736,174.26,174.23,5.78063013]
[1748417692051,5.736,174.26,174.24,5.7364]
[1748417696851,5.736,174.26,174.23,5.78073013]
[1748417703653,5.736,174.26,174.24,5.7364]
[1748417703855,5.736,174.26,174.23,0.04403013]
[1748417704046,5.736,174.26,174.23,5.78063013]
[1748417706351,4.26953939,174.28,174.23,0.04403013]
[1748417707251,5.7363,174.25,174.23,5.78083013]
[1748417709759,5.7359,174.26,174.23,5.78083013]
[1748417711556,5.7362,174.25,174.23,5.78083013]
[1748417713057,5.7359,174.26,174.23,5.78083013]
[1748417713761,5.7361,174.25,174.23,5.78083013]
[1748417714059,4.26953939,174.28,174.23,5.78083013]
[1748417714258,5.7359,174.26,174.23,5.78083013]
[1748417715554,4.26953939,174.28,174.23,5.78083013]
[1748417715555,5.7361,174.25,174.23,5.78083013]
[1748417716464,5.7361,174.25,174.23,0.04403013]
[1748417718058,5.7361,174.25,174.23,5.78073013]
[1748417718655,5.7359,174.26,174.23,5.78073013]
[1748417724066,5.7362,174.25,174.23,5.78073013]
[1748417724563,4.26953939,174.29,174.23,5.78073013]
[1748417725064,5.736,174.26,174.23,5.78073013]
[1748417725467,4.26953939,174.29,174.23,5.78073013]
[1748417727268,5.736,174.26,174.24,5.7364]
[1748417728469,5.736,174.26,174.23,0.04403013]
[1748417728470,5.736,174.26,174.23,5.78073013]
[1748417728968,5.7352,174.28,174.25,5.736]
[1748417729169,5.7352,174.28,174.23,0.04403013]
[1748417729359,5.7352,174.28,174.23,4.31356952]
[1748417729560,5.7352,174.28,174.23,0.04403013]
[1748417729763,4.26953939,174.28,174.23,0.04403013]
[1748417730571,5.736,174.26,174.23,5.78063013]
[1748417730963,5.736,174.26,174.23,0.04403013]
[1748417731868,5.736,174.26,174.24,5.7364]
[1748417732372,5.736,174.26,174.23,0.04403013]
[1748417732572,5.736,174.26,174.23,5.78073013]
[1748417734172,5.736,174.26,174.24,5.7364]
[1748417736071,5.736,174.26,174.23,5.78063013]
[1748417736768,5.736,174.26,174.23,10.05016952]
[1748417737575,5.736,174.26,174.23,0.04403013]
[1748417737774,5.736,174.26,174.23,4.31356952]
[1748417737971,5.736,174.26,174.23,10.05016952]
[1748417740577,5.7362,174.25,174.23,10.05016952]
[1748417740774,4.26953939,174.26,174.23,0.04403013]
[1748417741170,5.7364,174.24,174.23,0.04403013]
[1748417741967,10.00593939,174.24,174.19,28.16]
[1748417742178,4.26953939,174.2,174.16,28.16]
[1748417743080,4.31230655,174.2,174.16,28.20128429]
[1748417743281,5.7386,174.18,174.16,28.20128429]
[1748417744877,5.7387,174.17,174.16,28.20128429]
[1748417745182,5.7387,174.17,174.16,0.04128429]
[1748417745980,4.31230655,174.2,174.16,0.04128429]
[1748417745981,5.7386,174.18,174.16,0.04128429]
[1748417747887,5.7386,174.18,174.16,5.78038429]
[1748417753293,5.7382,174.19,174.16,5.78038429]
[1748417754490,10.05010655,174.2,174.17,5.7385]
[1748417754696,0.04276716,174.2,174.16,0.04128429]
[1748417755191,0.04276716,174.2,174.18,5.7382]
[1748417758693,5.78056716,174.2,174.18,5.7382]
[1748417764396,0.04276716,174.2,174.19,5.7381]
[1748417766704,0.04276716,174.2,174.18,5.7383]
[1748417766904,0.04276716,174.2,174.17,32.42953939]
[1748417767903,0.04276716,174.2,174.18,5.7381]
[1748417768308,5.78076716,174.2,174.18,5.7381]
[1748417769203,0.04276716,174.2,174.18,5.7381]
[1748417770103,0.04276716,174.2,174.19,5.7381]
[1748417777505,32.42953939,174.26,174.21,5.7373]
[1748417777912,4.26953939,174.26,174.21,4.26953939]
[1748417778118,182.0,174.27,174.21,32.40953939]
[1748417778412,5.736,174.26,174.21,32.40953939]
[1748417778619,5.736,174.26,174.22,0.04261235]
[1748417778811,5.736,174.26,174.23,5.7365]
[1748417780121,5.736,174.26,174.24,5.7364]
[1748417781014,11.4651,174.36,174.25,32.40953939]
[1748417781215,4.26953939,174.34,174.29,0.04107041]
[1748417781811,28.14,174.37,174.29,5.77587041]
[1748417782012,4.26953939,174.35,174.29,5.77587041]
[1748417782815,5.7337,174.33,174.29,5.77587041]
[1748417783321,4.26953939,174.35,174.29,5.77587041]
[1748417784418,5.7342,174.31,174.29,5.77587041]
[1748417785516,5.7342,174.31,174.29,0.04107041]
[1748417789324,5.7342,174.31,174.29,5.77577041]
[1748417790417,5.7342,174.31,174.29,0.04107041]
[1748417791026,186.26953939,174.36,174.29,0.04107041]
[1748417791221,186.26953939,174.36,174.29,4.3106098]
[1748417791614,5.734,174.32,174.29,10.0452098]
[1748417795423,5.7342,174.31,174.29,10.0452098]
[1748417799034,5.7342,174.31,174.29,4.3106098]
[1748417800737,5.7342,174.31,174.29,10.0454098]
[1748417801535,5.7342,174.31,174.29,4.3106098]
[1748417803736,5.7342,174.31,174.29,10.0453098]
[1748417808738,5.7339,174.32,174.3,5.7345]
[1748417809430,5.7339,174.32,174.29,10.0452098]
[1748417809633,5.7342,174.31,174.29,10.0452098]
[1748417813341,5.734,174.32,174.3,5.7344]
[1748417814738,186.26953939,174.36,174.29,4.3106098]
[1748417815042,186.26953939,174.36,174.29,32.4306098]
[1748417815235,5.7334,174.34,174.31,5.734]
[1748417815839,5.7334,174.34,174.32,5.7337]
[1748417816343,182.0,174.36,174.32,5.7337]
[1748417818042,5.7329,174.35,174.31,4.26953939]
[1748417818540,182.0,174.36,174.31,4.26953939]
[1748417819537,5.7333,174.34,174.32,5.7336]
[1748417819741,5.7333,174.34,174.31,4.26953939]
[1748417820045,5.7333,174.34,174.31,10.00353939]
[1748417820247,5.7335,174.33,174.31,10.00353939]
[1748417820538,182.0,174.36,174.31,10.00353939]
[1748417820744,5.7333,174.34,174.32,5.7336]
[1748417824644,5.7329,174.35,174.33,5.7335]
[1748417825549,5.7326,174.36,174.32,0.03768412]
[1748417825741,5.7326,174.36,174.32,4.30722351]
[1748417825939,5.7326,174.36,174.33,5.7334]
[1748417826136,5.7329,174.35,174.33,5.7334]
[1748417826346,182.0,174.39,174.32,4.30722351]
[1748417826549,182.0,174.39,174.34,5.7329]
[1748417826747,5.7324,174.37,174.34,5.7329]
[1748417827245,5.7319,174.38,174.36,5.7325]
[1748417827446,28.1,174.4,174.35,0.03784901]
[1748417827651,4.26953939,174.4,174.35,0.03784901]
[1748417827847,5.7323,174.37,174.35,0.03784901]
[1748417828446,5.732,174.38,174.35,5.77044901]
[1748417830152,5.732,174.38,174.36,5.7325]
[1748417831552,5.732,174.38,174.35,5.77054901]
[1748417833056,5.7322,174.37,174.35,5.77054901]
[1748417835455,182.0,174.42,174.35,0.03784901]
[1748417835655,186.26953939,174.42,174.35,0.03784901]
[1748417835855,182.0,174.42,174.35,0.03784901]
[1748417836056,5.7317,174.39,174.36,5.7323]
[1748417837963,5.7317,174.39,174.37,5.7322]
[1748417841267,5.7317,174.39,174.36,5.7323]
[1748417843567,186.26953939,174.42,174.35,5.77064901]
[1748417843862,4.26953939,174.4,174.35,0.03784901]
[1748417844058,5.7321,174.38,174.35,5.77064901]
[1748417845063,5.7321,174.38,174.36,5.7325]
[1748417848869,5.7317,174.39,174.35,0.03784901]
[1748417849067,5.7317,174.39,174.36,5.7323]
[1748417849872,5.7318,174.38,174.36,5.7323]
[1748417850775,5.7322,174.37,174.35,5.77054901]
[1748417851377,5.7319,174.38,174.35,5.77054901]
[1748417851566,5.7319,174.38,174.36,5.7325]
[1748417855077,5.7316,174.39,174.36,5.7325]
[1748417855583,5.7319,174.38,174.36,5.7325]
[1748417857983,5.7315,174.39,174.37,5.7322]
[1748417859687,5.7313,174.4,174.38,5.7318]
[1748417862477,5.731,174.41,174.38,5.7318]
[1748417862688,5.731,174.41,174.36,4.26953939]
[1748417862689,182.0,174.42,174.4,5.7311]
[1748417862883,4.26953939,174.44,174.4,5.7311]
[1748417863188,5.7304,174.43,174.4,5.7311]
[1748417863588,210.1,174.46,174.4,5.7311]
[1748417863589,5.7307,174.42,174.4,5.7311]
[1748417863780,214.36953939,174.46,174.41,5.7308]
[1748417864191,5.7304,174.43,174.39,0.03709354]
[1748417864385,5.7304,174.43,174.4,5.7311]
[1748417864591,214.36953939,174.46,174.4,5.7311]
[1748417865385,5.7305,174.43,174.4,5.7311]
[1748417866288,5.7306,174.42,174.4,5.7311]
[1748417867295,5.7306,174.42,174.39,5.76849354]
[1748417867701,5.7306,174.42,174.4,5.7311]
[1748417869191,5.7306,174.42,174.39,5.76839354]
[1748417871696,5.7306,174.42,174.39,10.03793293]
[1748417872293,4.26953939,174.42,174.39,0.03709354]
[1748417873387,5.7312,174.4,174.39,0.03709354]
[1748417877085,10.00073939,174.4,174.39,0.03709354]
[1748417881801,5.7312,174.4,174.39,0.03709354]
[1748417885901,10.00053939,174.41,174.39,0.03709354]
[1748417886607,4.26953939,174.43,174.39,5.76839354]
[1748417887601,5.7306,174.42,174.39,5.76839354]
[1748417888401,5.7309,174.41,174.39,5.76839354]
[1748417888708,5.7309,174.41,174.39,0.03709354]
[1748417891401,4.26953939,174.42,174.34,28.08]
[1748417891402,4.26953939,174.4,174.34,28.08]
[1748417891709,4.26953939,174.36,174.31,28.08]
[1748417892010,4.26953939,174.32,174.26,2.0579]
[1748417892204,4.26953939,174.32,174.24,142.20953939]
[1748417892404,5.77153499,174.3,174.26,5.77450956]
[1748417892605,5.77153499,174.3,174.26,0.03900956]
[1748417892606,0.03673499,174.3,174.26,0.03900956]
[1748417893006,0.03673499,174.3,174.26,4.30854895]
[1748417893211,0.03673499,174.3,174.29,5.7348]
[1748417898917,0.03673499,174.3,174.28,33.8351]
[1748417899113,0.03673499,174.3,174.28,28.1]
[1748417899520,0.03673499,174.3,174.28,33.8351]
[1748417900018,0.03673499,174.3,174.28,28.1]
[1748417900220,0.03673499,174.3,174.29,5.7348]
[1748417903321,0.03673499,174.3,174.28,33.835]
[1748417903522,0.03673499,174.3,174.28,28.1]
[1748417903722,0.03673499,174.3,174.26,0.03900956]
[1748417904222,5.77143499,174.3,174.27,5.7353]
[1748417905316,0.03673499,174.3,174.28,5.7351]
[1748417907423,0.03673499,174.3,174.26,0.03900956]
[1748417907925,5.7355,174.27,174.26,0.03900956]
[1748417909329,5.7364,174.25,174.21,28.1]
[1748417910124,5.7364,174.25,174.2,5.7377]
[1748417910430,0.04141062,174.24,174.21,0.04009613]
[1748417911324,0.04141062,174.24,174.21,5.77749613]
[1748417912030,0.04141062,174.24,174.22,5.737]
[1748417912933,0.04141062,174.24,174.23,5.7368]
[1748417914630,0.04141062,174.24,174.22,5.737]
[1748417915929,0.04141062,174.24,174.23,5.7368]
[1748417920225,210.1,174.31,174.22,28.1]
[1748417920435,210.1,174.31,174.23,1.9803]
[1748417920736,5.7347,174.3,174.23,1.9803]
[1748417920937,182.0,174.31,174.23,1.9803]
[1748417921133,0.04217618,174.29,174.28,5.7349]
[1748417930746,0.04217618,174.29,174.27,5.7354]
[1748417931948,0.04217618,174.29,174.28,5.7352]
[1748417934146,210.1,174.37,174.26,138.02]
[1748417934545,5.7335,174.34,174.26,138.02]
[1748417935144,210.1,174.37,174.3,5.7343]
[1748417935145,5.7337,174.33,174.3,5.7343]
[1748417935345,5.7337,174.33,174.3,0.04400951]
[1748417935949,5.7339,174.32,174.3,0.04400951]
[1748417936251,210.1,174.37,174.3,0.04400951]
[1748417936854,5.7342,174.31,174.3,0.04400951]
[1748417954469,5.7342,174.31,174.3,9.51e-06]
[1748417954763,5.7365,174.24,174.23,28.1]
[1748417954962,5.7365,174.24,174.22,5.737]
[1748417956364,5.77550686,174.25,174.22,5.737]
[1748417957667,5.77550686,174.25,174.23,5.7368]
[1748417958572,0.03920686,174.25,174.24,5.7365]
[1748417964976,0.03920686,174.25,174.24,33.8365]
[1748417970783,28.1,174.32,174.27,5.7354]